[Event "Late-Titled-Tuesday-Blitz-February-13-2024"]
[Site "Chess.com"]
[Date "2024.02.13"]
[Round "8"]
[White "VladimirBugayev"]
[Black "FM_Kappeler"]
[Result "1-0"]
[WhiteElo "2402"]
[BlackElo "2255"]
[TimeControl "180+1"]
[EndTime "15:28:24 PST"]
[Termination "VladimirBugayev won on time"]

1. e4 {[%clk 0:03:00.9]} 1... c5 {[%clk 0:02:59.2]} 2. Nc3 {[%clk 0:03:00.4]}
2... Nc6 {[%clk 0:02:58.8]} 3. Bb5 {[%clk 0:03:00.8]} 3... Nd4 {[%clk
0:02:55.5]} 4. Nf3 {[%clk 0:03:01.2]} 4... e6 {[%clk 0:02:52.6]} 5. O-O {[%clk
0:02:59]} 5... a6 {[%clk 0:02:50.3]} 6. Be2 {[%clk 0:02:50.9]} 6... Ne7 {[%clk
0:02:44.2]} 7. Nxd4 {[%clk 0:02:42.6]} 7... cxd4 {[%clk 0:02:43.5]} 8. Nb1
{[%clk 0:02:43.2]} 8... d5 {[%clk 0:02:40]} 9. f3 {[%clk 0:02:38.8]} 9... Nc6
{[%clk 0:02:30.1]} 10. d3 {[%clk 0:02:37.7]} 10... Be7 {[%clk 0:02:28.9]} 11.
Nd2 {[%clk 0:02:26.6]} 11... O-O {[%clk 0:02:20.6]} 12. f4 {[%clk 0:02:24.5]}
12... b5 {[%clk 0:02:00.8]} 13. a4 {[%clk 0:02:20.1]} 13... Bb7 {[%clk 0:02:00]}
14. e5 {[%clk 0:02:09.8]} 14... bxa4 {[%clk 0:01:52.4]} 15. Rxa4 {[%clk
0:02:00.6]} 15... Qd7 {[%clk 0:01:52.1]} 16. b3 {[%clk 0:01:54.2]} 16... Rfc8
{[%clk 0:01:47.7]} 17. Nf3 {[%clk 0:01:41.2]} 17... Nb4 {[%clk 0:01:26.7]} 18.
Nxd4 {[%clk 0:01:38.1]} 18... Bc5 {[%clk 0:01:25.8]} 19. Be3 {[%clk 0:01:37.8]}
19... Bxd4 {[%clk 0:01:19.9]} 20. Bxd4 {[%clk 0:01:37.8]} 20... Nxc2 {[%clk
0:01:16.3]} 21. Bf2 {[%clk 0:01:32.8]} 21... d4 {[%clk 0:01:14.6]} 22. Bf3
{[%clk 0:01:32.4]} 22... Ne3 {[%clk 0:01:08]} 23. Bxe3 {[%clk 0:01:20.7]} 23...
dxe3 {[%clk 0:01:06.3]} 24. Qe2 {[%clk 0:01:21.3]} 24... Bxf3 {[%clk 0:01:01.1]}
25. gxf3 {[%clk 0:01:16.4]} 25... Rc3 {[%clk 0:00:57.5]} 26. Qxe3 {[%clk
0:00:57.1]} 26... Rxd3 {[%clk 0:00:57.4]} 27. Qb6 {[%clk 0:00:56.4]} 27... g6
{[%clk 0:00:43.1]} 28. Rxa6 {[%clk 0:00:43.7]} 28... Rxa6 {[%clk 0:00:41.3]} 29.
Qxa6 {[%clk 0:00:44.3]} 29... Qd4+ {[%clk 0:00:40.6]} 30. Kh1 {[%clk 0:00:23.4]}
30... Rxb3 {[%clk 0:00:37.1]} 31. Qa8+ {[%clk 0:00:15.8]} 31... Kg7 {[%clk
0:00:36.2]} 32. Qe4 {[%clk 0:00:13.3]} 32... Qd2 {[%clk 0:00:24.2]} 33. Qe1
{[%clk 0:00:08.5]} 33... Qxf4 {[%clk 0:00:22.2]} 34. Qg3 {[%clk 0:00:08.8]}
34... Qd2 {[%clk 0:00:15.5]} 35. Rf2 {[%clk 0:00:08.6]} 35... Rb1+ {[%clk
0:00:14.2]} 36. Kg2 {[%clk 0:00:09.5]} 36... Qd1 {[%clk 0:00:11.6]} 37. Qh4
{[%clk 0:00:08.3]} 37... Qg1+ {[%clk 0:00:09.5]} 38. Kh3 {[%clk 0:00:08.6]} 1-0

[Event "Late-Titled-Tuesday-Blitz-February-13-2024"]
[Site "Chess.com"]
[Date "2024.02.13"]
[Round "8"]
[White "egnfanclub"]
[Black "ajeale2"]
[Result "1-0"]
[WhiteElo "2360"]
[BlackElo "2502"]
[TimeControl "180+1"]
[EndTime "15:28:25 PST"]
[Termination "egnfanclub won on time"]

1. e4 {[%clk 0:03:00.9]} 1... g6 {[%clk 0:02:59.6]} 2. Nc3 {[%clk 0:03:00.2]}
2... Bg7 {[%clk 0:02:59.9]} 3. f4 {[%clk 0:03:00.8]} 3... c6 {[%clk 0:02:56.5]}
4. Nf3 {[%clk 0:03:00.3]} 4... d5 {[%clk 0:02:57]} 5. d4 {[%clk 0:02:55.2]} 5...
dxe4 {[%clk 0:02:54.1]} 6. Nxe4 {[%clk 0:02:55.1]} 6... Nf6 {[%clk 0:02:54.6]}
7. Nxf6+ {[%clk 0:02:54.2]} 7... Bxf6 {[%clk 0:02:49.7]} 8. c3 {[%clk
0:02:53.9]} 8... O-O {[%clk 0:02:42.9]} 9. Bc4 {[%clk 0:02:51.9]} 9... a5 {[%clk
0:02:33.3]} 10. a4 {[%clk 0:02:49.7]} 10... Nd7 {[%clk 0:02:28]} 11. O-O {[%clk
0:02:47.8]} 11... Nb6 {[%clk 0:02:24.4]} 12. Bd3 {[%clk 0:02:44.6]} 12... Bg4
{[%clk 0:02:23.7]} 13. h3 {[%clk 0:02:44.1]} 13... Bxf3 {[%clk 0:02:23.6]} 14.
Qxf3 {[%clk 0:02:45]} 14... e6 {[%clk 0:02:18.3]} 15. Qg4 {[%clk 0:02:20]} 15...
c5 {[%clk 0:02:13.4]} 16. f5 {[%clk 0:02:15.6]} 16... exf5 {[%clk 0:02:09.8]}
17. Bxf5 {[%clk 0:02:15]} 17... cxd4 {[%clk 0:02:09.4]} 18. Bh6 {[%clk
0:02:09.2]} 18... Re8 {[%clk 0:01:56.9]} 19. Be4 {[%clk 0:02:08.6]} 19... dxc3
{[%clk 0:01:48.7]} 20. Bxb7 {[%clk 0:02:00.5]} 20... cxb2 {[%clk 0:01:44.1]} 21.
Rad1 {[%clk 0:01:57.6]} 21... b1=Q {[%clk 0:01:36.2]} 22. Rxb1 {[%clk
0:01:54.4]} 22... Qd4+ {[%clk 0:01:33.8]} 23. Kh1 {[%clk 0:01:46.2]} 23... Rab8
{[%clk 0:01:32.6]} 24. Qf3 {[%clk 0:01:31.4]} 24... Re6 {[%clk 0:01:12.6]} 25.
Bd5 {[%clk 0:01:12.8]} 25... Rd6 {[%clk 0:00:30.1]} 26. Bf4 {[%clk 0:01:03.6]}
26... Be5 {[%clk 0:00:30]} 27. Bxe5 {[%clk 0:00:59.2]} 27... Qxe5 {[%clk
0:00:30.2]} 28. Qxf7+ {[%clk 0:00:55.2]} 28... Kh8 {[%clk 0:00:30.7]} 29. Bf3
{[%clk 0:00:44.1]} 29... Rf6 {[%clk 0:00:29.1]} 30. Qa7 {[%clk 0:00:38.2]} 30...
Qe8 {[%clk 0:00:11.2]} 31. Rfe1 {[%clk 0:00:31.4]} 31... Qd8 {[%clk 0:00:11.7]}
32. Re7 {[%clk 0:00:29.7]} 32... Qg8 {[%clk 0:00:08.6]} 33. Rc1 {[%clk
0:00:22.1]} 33... Rxf3 {[%clk 0:00:02.8]} 34. gxf3 {[%clk 0:00:23]} 34... Qf8
{[%clk 0:00:02.8]} 35. Rxh7+ {[%clk 0:00:20.4]} 35... Kg8 {[%clk 0:00:02.9]} 36.
Kg2 {[%clk 0:00:21]} 36... Nd5 {[%clk 0:00:01.6]} 37. Rd7 {[%clk 0:00:15.2]}
37... Rb2+ {[%clk 0:00:01.7]} 38. Kg1 {[%clk 0:00:14.3]} 38... Ne3 {[%clk
0:00:01.1]} 39. Qxe3 {[%clk 0:00:13.2]} 1-0

[Event "Late-Titled-Tuesday-Blitz-February-13-2024"]
[Site "Chess.com"]
[Date "2024.02.13"]
[Round "8"]
[White "jinxy2009"]
[Black "Nick12772"]
[Result "0-1"]
[WhiteElo "2231"]
[BlackElo "2351"]
[TimeControl "180+1"]
[EndTime "15:28:25 PST"]
[Termination "Nick12772 won on time"]

1. e4 {[%clk 0:02:55]} 1... e6 {[%clk 0:03:00.5]} 2. d4 {[%clk 0:02:54.4]} 2...
d5 {[%clk 0:03:01.4]} 3. e5 {[%clk 0:02:53.8]} 3... c5 {[%clk 0:03:01.3]} 4. c3
{[%clk 0:02:54.1]} 4... Bd7 {[%clk 0:03:01.9]} 5. Nf3 {[%clk 0:02:53.8]} 5...
Qb6 {[%clk 0:03:02.5]} 6. Bd3 {[%clk 0:02:51.1]} 6... Bb5 {[%clk 0:03:01.5]} 7.
Bxb5+ {[%clk 0:02:45.8]} 7... Qxb5 {[%clk 0:03:02.4]} 8. Na3 {[%clk 0:02:46.2]}
8... Qd7 {[%clk 0:03:00.6]} 9. O-O {[%clk 0:02:42.9]} 9... cxd4 {[%clk
0:02:57.9]} 10. Nxd4 {[%clk 0:02:35.9]} 10... Bxa3 {[%clk 0:02:57.8]} 11. bxa3
{[%clk 0:02:35.8]} 11... Ne7 {[%clk 0:02:57.7]} 12. f4 {[%clk 0:02:35.5]} 12...
Nbc6 {[%clk 0:02:54.9]} 13. f5 {[%clk 0:02:31.8]} 13... Nxd4 {[%clk 0:02:53.1]}
14. Qxd4 {[%clk 0:02:14.6]} 14... Nxf5 {[%clk 0:02:52]} 15. Qb4 {[%clk
0:02:00.9]} 15... Qe7 {[%clk 0:02:47.8]} 16. g4 {[%clk 0:01:51.6]} 16... Qxb4
{[%clk 0:02:44.6]} 17. axb4 {[%clk 0:01:51.2]} 17... Ne7 {[%clk 0:02:39.9]} 18.
Be3 {[%clk 0:01:46.8]} 18... Ng6 {[%clk 0:02:35.3]} 19. Bd4 {[%clk 0:01:45.4]}
19... O-O {[%clk 0:02:31]} 20. Rf2 {[%clk 0:01:42.5]} 20... a6 {[%clk
0:02:26.8]} 21. a4 {[%clk 0:01:40.7]} 21... Rac8 {[%clk 0:02:19.7]} 22. Raf1
{[%clk 0:01:38.7]} 22... Rc7 {[%clk 0:02:16.4]} 23. a5 {[%clk 0:01:37.6]} 23...
Rfc8 {[%clk 0:02:03.6]} 24. Kg2 {[%clk 0:01:26.5]} 24... Rd7 {[%clk 0:01:41.8]}
25. Kg3 {[%clk 0:01:24.2]} 25... Rc4 {[%clk 0:01:41.6]} 26. h4 {[%clk
0:01:23.1]} 26... Nf8 {[%clk 0:01:36.4]} 27. h5 {[%clk 0:01:18.8]} 27... h6
{[%clk 0:01:36.1]} 28. g5 {[%clk 0:01:15]} 28... hxg5 {[%clk 0:01:34.5]} 29. Kg4
{[%clk 0:01:15.5]} 29... Nh7 {[%clk 0:01:31.3]} 30. Kg3 {[%clk 0:00:59.3]} 30...
Rdc7 {[%clk 0:01:22.7]} 31. Kh3 {[%clk 0:00:53.9]} 31... Rd7 {[%clk 0:01:18.2]}
32. Kg3 {[%clk 0:00:53.2]} 32... Rc8 {[%clk 0:01:17.7]} 33. Kg4 {[%clk
0:00:50.7]} 33... Rf8 {[%clk 0:01:16.4]} 34. Bc5 {[%clk 0:00:49.9]} 34... Re8
{[%clk 0:01:14.9]} 35. Bd4 {[%clk 0:00:50]} 35... Rb8 {[%clk 0:01:08]} 36. Kg3
{[%clk 0:00:43]} 36... Rc7 {[%clk 0:01:07.7]} 37. Bc5 {[%clk 0:00:38.4]} 37...
Rbc8 {[%clk 0:01:01.8]} 38. Kg4 {[%clk 0:00:21.9]} 38... f5+ {[%clk 0:00:56.3]}
39. exf6 {[%clk 0:00:20.4]} 39... gxf6 {[%clk 0:00:55.7]} 40. h6 {[%clk
0:00:19.5]} 40... Kf7 {[%clk 0:00:52]} 41. Kh5 {[%clk 0:00:18.9]} 41... Rg8
{[%clk 0:00:46.3]} 42. Bd4 {[%clk 0:00:18.7]} 42... Rg6 {[%clk 0:00:44.3]} 43.
Rf3 {[%clk 0:00:08.3]} 43... Re7 {[%clk 0:00:44.4]} 44. Bc5 {[%clk 0:00:05.6]}
44... Re8 {[%clk 0:00:43.6]} 45. Bd4 {[%clk 0:00:02.9]} 45... e5 {[%clk
0:00:44]} 46. Bc5 {[%clk 0:00:02.7]} 46... g4 {[%clk 0:00:42.1]} 47. Rf5 {[%clk
0:00:02.4]} 47... g3 {[%clk 0:00:39.7]} 48. Kh4 {[%clk 0:00:02.2]} 48... g2
{[%clk 0:00:39.9]} 49. Rg1 {[%clk 0:00:02.4]} 49... e4 {[%clk 0:00:37.9]} 50.
Kh3 {[%clk 0:00:02.1]} 50... Ng5+ {[%clk 0:00:36.7]} 0-1

[Event "Late-Titled-Tuesday-Blitz-February-13-2024"]
[Site "Chess.com"]
[Date "2024.02.13"]
[Round "8"]
[White "Cosi43"]
[Black "claudyna16"]
[Result "0-1"]
[WhiteElo "2585"]
[BlackElo "2447"]
[TimeControl "180+1"]
[EndTime "15:28:26 PST"]
[Termination "claudyna16 won by resignation"]

1. d4 {[%clk 0:03:00.9]} 1... Nf6 {[%clk 0:02:56.5]} 2. Nf3 {[%clk 0:03:00.9]}
2... g6 {[%clk 0:02:55.9]} 3. c4 {[%clk 0:03:01.4]} 3... Bg7 {[%clk 0:02:55.8]}
4. Nc3 {[%clk 0:03:01.9]} 4... O-O {[%clk 0:02:55.6]} 5. Bg5 {[%clk 0:03:02.3]}
5... d6 {[%clk 0:02:53.9]} 6. e3 {[%clk 0:03:02.3]} 6... b6 {[%clk 0:02:50.7]}
7. Qc2 {[%clk 0:03:01.2]} 7... Bb7 {[%clk 0:02:50.6]} 8. Rd1 {[%clk 0:02:59.6]}
8... Nbd7 {[%clk 0:02:50.3]} 9. Be2 {[%clk 0:02:59.3]} 9... h6 {[%clk
0:02:49.7]} 10. Bh4 {[%clk 0:02:59.2]} 10... g5 {[%clk 0:02:50.1]} 11. Bg3
{[%clk 0:02:59.3]} 11... e6 {[%clk 0:02:34.9]} 12. d5 {[%clk 0:02:45.4]} 12...
e5 {[%clk 0:02:31.7]} 13. Nd2 {[%clk 0:02:43.6]} 13... a5 {[%clk 0:02:29.6]} 14.
h4 {[%clk 0:02:36.8]} 14... g4 {[%clk 0:02:23.5]} 15. h5 {[%clk 0:02:22.6]}
15... Nc5 {[%clk 0:02:16.5]} 16. Rh4 {[%clk 0:01:57.1]} 16... Qd7 {[%clk
0:02:15.6]} 17. f3 {[%clk 0:01:53.3]} 17... Rae8 {[%clk 0:01:53.3]} 18. fxg4
{[%clk 0:01:47.4]} 18... e4 {[%clk 0:01:53.8]} 19. Bf4 {[%clk 0:01:38.3]} 19...
Bc8 {[%clk 0:01:14.5]} 20. Nb5 {[%clk 0:01:12.1]} 20... Nh7 {[%clk 0:01:12]} 21.
Nd4 {[%clk 0:00:48.5]} 21... Bxd4 {[%clk 0:01:08.1]} 22. exd4 {[%clk 0:00:49.4]}
22... Nd3+ {[%clk 0:01:08.3]} 23. Kf1 {[%clk 0:00:41.7]} 23... Nxf4 {[%clk
0:01:08.2]} 24. Nxe4 {[%clk 0:00:23.6]} 24... Nxe2 {[%clk 0:01:03.1]} 25. Qxe2
{[%clk 0:00:24.5]} 25... f5 {[%clk 0:00:58.7]} 26. gxf5 {[%clk 0:00:21]} 26...
Qxf5+ {[%clk 0:00:58.7]} 27. Kg1 {[%clk 0:00:20.8]} 27... Ng5 {[%clk 0:00:57.1]}
28. Re1 {[%clk 0:00:11.1]} 28... Bd7 {[%clk 0:00:43.2]} 29. Kh2 {[%clk
0:00:09.9]} 29... Nxe4 {[%clk 0:00:30.3]} 30. Rxe4 {[%clk 0:00:09.3]} 30... Rxe4
{[%clk 0:00:30.4]} 31. Qxe4 {[%clk 0:00:09.7]} 31... Qxe4 {[%clk 0:00:28.8]} 32.
Rxe4 {[%clk 0:00:09.4]} 32... Rf7 {[%clk 0:00:29.2]} 33. Kg3 {[%clk 0:00:07]}
33... Kf8 {[%clk 0:00:29.4]} 34. a3 {[%clk 0:00:06.4]} 34... Re7 {[%clk
0:00:29.6]} 35. Rf4+ {[%clk 0:00:06.5]} 35... Kg7 {[%clk 0:00:30]} 36. b4 {[%clk
0:00:06.7]} 36... Re3+ {[%clk 0:00:29.8]} 37. Rf3 {[%clk 0:00:06.3]} 37... Rxf3+
{[%clk 0:00:29.9]} 38. Kxf3 {[%clk 0:00:06.8]} 38... axb4 {[%clk 0:00:29.7]} 39.
axb4 {[%clk 0:00:06.6]} 39... Kf6 {[%clk 0:00:30.2]} 40. Kf4 {[%clk 0:00:07.2]}
40... Ba4 {[%clk 0:00:26.4]} 41. c5 {[%clk 0:00:07.3]} 41... Bb3 {[%clk
0:00:22.5]} 42. Ke4 {[%clk 0:00:04.3]} 42... Bd1 {[%clk 0:00:22.6]} 43. cxb6
{[%clk 0:00:03]} 43... cxb6 {[%clk 0:00:22.4]} 0-1

[Event "Late-Titled-Tuesday-Blitz-February-13-2024"]
[Site "Chess.com"]
[Date "2024.02.13"]
[Round "8"]
[White "KuzubovYuriy"]
[Black "LyonBeast"]
[Result "0-1"]
[WhiteElo "2989"]
[BlackElo "3177"]
[TimeControl "180+1"]
[EndTime "15:28:31 PST"]
[Termination "LyonBeast won by checkmate"]

1. d4 {[%clk 0:03:00.9]} 1... Nf6 {[%clk 0:02:57.2]} 2. Nf3 {[%clk 0:03:01.5]}
2... g6 {[%clk 0:02:57.2]} 3. Nbd2 {[%clk 0:03:02.2]} 3... d5 {[%clk 0:02:56.9]}
4. b4 {[%clk 0:03:02.7]} 4... Bg7 {[%clk 0:02:56.8]} 5. Bb2 {[%clk 0:03:01.5]}
5... O-O {[%clk 0:02:53.6]} 6. e3 {[%clk 0:03:01.5]} 6... a5 {[%clk 0:02:54.3]}
7. b5 {[%clk 0:03:02]} 7... c5 {[%clk 0:02:55]} 8. c4 {[%clk 0:03:01.6]} 8...
cxd4 {[%clk 0:02:53.2]} 9. Bxd4 {[%clk 0:03:01.1]} 9... Nbd7 {[%clk 0:02:44.6]}
10. Rc1 {[%clk 0:02:59.4]} 10... Re8 {[%clk 0:02:42.1]} 11. cxd5 {[%clk
0:02:54.6]} 11... Nxd5 {[%clk 0:02:43]} 12. Bxg7 {[%clk 0:02:45.8]} 12... Kxg7
{[%clk 0:02:43.9]} 13. Nc4 {[%clk 0:02:45.9]} 13... N7f6 {[%clk 0:02:40.1]} 14.
Be2 {[%clk 0:02:45.5]} 14... Bg4 {[%clk 0:02:30.8]} 15. O-O {[%clk 0:02:45.4]}
15... Rc8 {[%clk 0:02:28]} 16. Qd4 {[%clk 0:02:27.3]} 16... Nb4 {[%clk
0:02:11.2]} 17. a3 {[%clk 0:01:51.6]} 17... Qxd4 {[%clk 0:02:02.9]} 18. Nxd4
{[%clk 0:01:47]} 18... Bxe2 {[%clk 0:02:00.9]} 19. Nxe2 {[%clk 0:01:46.3]} 19...
Na2 {[%clk 0:01:50]} 20. Rc2 {[%clk 0:01:35.1]} 20... Rc5 {[%clk 0:01:50.1]} 21.
Rd1 {[%clk 0:01:04.9]} 21... Rec8 {[%clk 0:01:46.4]} 22. Rxa2 {[%clk 0:01:04.3]}
22... Rxc4 {[%clk 0:01:46.3]} 23. Kf1 {[%clk 0:01:02.7]} 23... Ne4 {[%clk
0:01:36.9]} 24. f3 {[%clk 0:00:55.8]} 24... Nd6 {[%clk 0:01:35.2]} 25. a4 {[%clk
0:00:48.7]} 25... Rb4 {[%clk 0:01:31.7]} 26. Nf4 {[%clk 0:00:39.8]} 26... Nc4
{[%clk 0:01:15.7]} 27. Kf2 {[%clk 0:00:39]} 27... Nb6 {[%clk 0:00:55]} 28. Nd5
{[%clk 0:00:31.4]} 28... Rxa4 {[%clk 0:00:27.5]} 29. Rxa4 {[%clk 0:00:25.4]}
29... Nxa4 {[%clk 0:00:28.4]} 30. Nxe7 {[%clk 0:00:21.1]} 30... Rc2+ {[%clk
0:00:28.8]} 31. Kg3 {[%clk 0:00:20.7]} 31... Nc3 {[%clk 0:00:29]} 32. Rd7 {[%clk
0:00:20.5]} 32... a4 {[%clk 0:00:28]} 33. Rxb7 {[%clk 0:00:20.4]} 33... a3
{[%clk 0:00:28]} 34. Ra7 {[%clk 0:00:20.3]} 34... a2 {[%clk 0:00:17.4]} 35. b6
{[%clk 0:00:20.5]} 35... Rb2 {[%clk 0:00:16.2]} 36. Nc8 {[%clk 0:00:19.6]} 36...
Rb1 {[%clk 0:00:14.8]} 37. Nd6 {[%clk 0:00:13.2]} 37... a1=Q {[%clk 0:00:13.3]}
38. Rxf7+ {[%clk 0:00:09.6]} 38... Kg8 {[%clk 0:00:12.6]} 39. b7 {[%clk
0:00:08.8]} 39... Ne2+ {[%clk 0:00:12.3]} 40. Kh3 {[%clk 0:00:08.4]} 40... Qe5
{[%clk 0:00:11.2]} 41. Rc7 {[%clk 0:00:03.6]} 41... Qh5# {[%clk 0:00:11.2]} 0-1

[Event "Late-Titled-Tuesday-Blitz-February-13-2024"]
[Site "Chess.com"]
[Date "2024.02.13"]
[Round "8"]
[White "Msb2"]
[Black "sergiochess83"]
[Result "1/2-1/2"]
[WhiteElo "3010"]
[BlackElo "2853"]
[TimeControl "180+1"]
[EndTime "15:28:32 PST"]
[Termination "Game drawn by repetition"]

1. d4 {[%clk 0:03:00.9]} 1... Nf6 {[%clk 0:02:49]} 2. c4 {[%clk 0:03:00.3]} 2...
e6 {[%clk 0:02:48.5]} 3. Nc3 {[%clk 0:03:01]} 3... Bb4 {[%clk 0:02:47.8]} 4. e3
{[%clk 0:03:01.8]} 4... O-O {[%clk 0:02:47.4]} 5. Bd2 {[%clk 0:03:02]} 5... d5
{[%clk 0:02:46.4]} 6. Nf3 {[%clk 0:03:02.4]} 6... b6 {[%clk 0:02:45.9]} 7. cxd5
{[%clk 0:03:02.9]} 7... exd5 {[%clk 0:02:45.5]} 8. Rc1 {[%clk 0:03:03.6]} 8...
a6 {[%clk 0:02:36.5]} 9. Bd3 {[%clk 0:03:03.2]} 9... Bb7 {[%clk 0:02:34.7]} 10.
O-O {[%clk 0:03:03.4]} 10... Bd6 {[%clk 0:02:34.8]} 11. Ne5 {[%clk 0:03:03.5]}
11... c5 {[%clk 0:02:35]} 12. f4 {[%clk 0:03:04.1]} 12... Nc6 {[%clk 0:02:23.9]}
13. Ng4 {[%clk 0:03:04.7]} 13... Nb4 {[%clk 0:01:52.4]} 14. Bb1 {[%clk
0:02:52.7]} 14... cxd4 {[%clk 0:01:51.2]} 15. exd4 {[%clk 0:02:51.1]} 15... Ne4
{[%clk 0:01:50.9]} 16. a3 {[%clk 0:02:38.5]} 16... Nxd2 {[%clk 0:01:42.8]} 17.
Qxd2 {[%clk 0:02:34]} 17... Nc6 {[%clk 0:01:42.4]} 18. Qd3 {[%clk 0:02:18.2]}
18... f5 {[%clk 0:01:38.5]} 19. Ne3 {[%clk 0:02:13.3]} 19... Ne7 {[%clk
0:01:30.7]} 20. Ba2 {[%clk 0:02:10.2]} 20... Kh8 {[%clk 0:01:28.7]} 21. Ncxd5
{[%clk 0:01:59.5]} 21... Nxd5 {[%clk 0:01:15.6]} 22. Bxd5 {[%clk 0:01:23]} 22...
Bxd5 {[%clk 0:01:14.7]} 23. Nxd5 {[%clk 0:01:23.9]} 23... Bxa3 {[%clk
0:01:15.1]} 24. Ne3 {[%clk 0:01:17.3]} 24... Bxb2 {[%clk 0:00:57.7]} 25. Rcd1
{[%clk 0:01:17.7]} 25... Rc8 {[%clk 0:00:57.9]} 26. Nc4 {[%clk 0:01:12.5]} 26...
Bc3 {[%clk 0:00:56.4]} 27. d5 {[%clk 0:00:52.6]} 27... b5 {[%clk 0:00:33.2]} 28.
Ne5 {[%clk 0:00:52.6]} 28... Qd6 {[%clk 0:00:26.8]} 29. Nc6 {[%clk 0:00:50.6]}
29... Bf6 {[%clk 0:00:22.1]} 30. Kh1 {[%clk 0:00:46.5]} 30... g6 {[%clk
0:00:20.1]} 31. h3 {[%clk 0:00:27.8]} 31... Rfe8 {[%clk 0:00:20]} 32. Rfe1
{[%clk 0:00:27]} 32... Kg7 {[%clk 0:00:19.1]} 33. Ne5 {[%clk 0:00:22.1]} 33...
Bxe5 {[%clk 0:00:09.3]} 34. fxe5 {[%clk 0:00:23]} 34... Rxe5 {[%clk 0:00:08.8]}
35. Rxe5 {[%clk 0:00:23.9]} 35... Qxe5 {[%clk 0:00:08.6]} 36. d6 {[%clk
0:00:24.8]} 36... Rd8 {[%clk 0:00:09.1]} 37. d7 {[%clk 0:00:25.4]} 37... Qe6
{[%clk 0:00:04.8]} 38. Qd4+ {[%clk 0:00:22.8]} 38... Kf7 {[%clk 0:00:05.4]} 39.
Qh4 {[%clk 0:00:14.6]} 39... Rxd7 {[%clk 0:00:04.4]} 40. Re1 {[%clk 0:00:14.2]}
40... Qf6 {[%clk 0:00:03.4]} 41. Qxh7+ {[%clk 0:00:12.9]} 41... Qg7 {[%clk
0:00:03.9]} 42. Qh4 {[%clk 0:00:13.7]} 42... Qf6 {[%clk 0:00:03.7]} 43. Qh7+
{[%clk 0:00:14]} 43... Qg7 {[%clk 0:00:04.1]} 44. Qh4 {[%clk 0:00:14.7]} 44...
Qf6 {[%clk 0:00:04.7]} 45. Qh7+ {[%clk 0:00:13.9]} 1/2-1/2

[Event "Late-Titled-Tuesday-Blitz-February-13-2024"]
[Site "Chess.com"]
[Date "2024.02.13"]
[Round "8"]
[White "ChEsper99"]
[Black "effefe"]
[Result "1-0"]
[WhiteElo "2208"]
[BlackElo "2274"]
[TimeControl "180+1"]
[EndTime "15:28:33 PST"]
[Termination "ChEsper99 won by checkmate"]

1. e4 {[%clk 0:02:59.9]} 1... c5 {[%clk 0:02:57.9]} 2. Nf3 {[%clk 0:02:39.4]}
2... d6 {[%clk 0:02:57.2]} 3. Bb5+ {[%clk 0:02:38.8]} 3... Nd7 {[%clk
0:02:56.9]} 4. a4 {[%clk 0:02:36.6]} 4... a6 {[%clk 0:02:54.9]} 5. Be2 {[%clk
0:02:36.3]} 5... Ngf6 {[%clk 0:02:54.7]} 6. Nc3 {[%clk 0:02:36.6]} 6... g6
{[%clk 0:02:55]} 7. O-O {[%clk 0:02:36.6]} 7... Bg7 {[%clk 0:02:55.7]} 8. d3
{[%clk 0:02:37.1]} 8... O-O {[%clk 0:02:56.1]} 9. a5 {[%clk 0:02:33.8]} 9... e5
{[%clk 0:02:55.7]} 10. Nd2 {[%clk 0:02:32]} 10... Ne8 {[%clk 0:02:56.2]} 11. Nc4
{[%clk 0:02:31.6]} 11... Nb8 {[%clk 0:02:53.7]} 12. Nb6 {[%clk 0:02:25.9]} 12...
Ra7 {[%clk 0:02:53.1]} 13. Nxc8 {[%clk 0:02:20.5]} 13... Qxc8 {[%clk 0:02:47.9]}
14. Nd5 {[%clk 0:02:18.2]} 14... Nc6 {[%clk 0:02:46.6]} 15. c3 {[%clk 0:02:06]}
15... Qd8 {[%clk 0:02:42.1]} 16. b4 {[%clk 0:02:00.1]} 16... f5 {[%clk
0:02:38.7]} 17. Qb3 {[%clk 0:01:53.9]} 17... Kh8 {[%clk 0:02:32.4]} 18. f4
{[%clk 0:01:39.1]} 18... fxe4 {[%clk 0:02:23.5]} 19. dxe4 {[%clk 0:01:37.5]}
19... exf4 {[%clk 0:02:15]} 20. Nxf4 {[%clk 0:01:33.3]} 20... Qe7 {[%clk
0:02:06]} 21. bxc5 {[%clk 0:01:10.2]} 21... dxc5 {[%clk 0:01:55.6]} 22. Ne6
{[%clk 0:00:39.6]} 22... Rxf1+ {[%clk 0:01:53.7]} 23. Bxf1 {[%clk 0:00:40.5]}
23... Be5 {[%clk 0:01:30.8]} 24. Bg5 {[%clk 0:00:31.2]} 24... Qf7 {[%clk
0:00:52.7]} 25. Bc4 {[%clk 0:00:26.5]} 25... Nd6 {[%clk 0:00:47.1]} 26. Rf1
{[%clk 0:00:25.1]} 26... Qxf1+ {[%clk 0:00:24.1]} 27. Bxf1 {[%clk 0:00:20.6]}
27... Ra8 {[%clk 0:00:11.7]} 28. Nxc5 {[%clk 0:00:19.3]} 28... Nxa5 {[%clk
0:00:09.1]} 29. Qd5 {[%clk 0:00:17.9]} 29... Re8 {[%clk 0:00:07.4]} 30. Bf6+
{[%clk 0:00:12.4]} 30... Bxf6 {[%clk 0:00:06]} 31. Qxd6 {[%clk 0:00:13]} 31...
Bxc3 {[%clk 0:00:05.6]} 32. Qd7 {[%clk 0:00:10.5]} 32... Re5 {[%clk 0:00:04.1]}
33. Ne6 {[%clk 0:00:09]} 33... h5 {[%clk 0:00:01.7]} 34. Qd8+ {[%clk 0:00:06.7]}
34... Kh7 {[%clk 0:00:01.8]} 35. Qe7+ {[%clk 0:00:03.5]} 35... Kh6 {[%clk
0:00:02.1]} 36. Qg7# {[%clk 0:00:03.5]} 1-0